[Event "RUS-chT Rapid Men 2018"]
[Site "Sochi"]
[Date "2018.10.09"]
[Round "6"]
[White "Jary, Sergey"]
[Black "Potkin, Vladimir"]
[Result "1/2-1/2"]
[ECO "A45"]
[WhiteElo "2286"]
[BlackElo "2597"]
[Annotator "ChessBase"]
[PlyCount "75"]
[EventDate "2018.10.05"]
[EventType "swiss"]
[EventCountry "RUS"]
[SourceTitle "playchess.com"]
[Source "ChessBase"]
[SourceQuality "1"]
[TimeControl "900+10"]

1. d4 {[%emt 0:00:00]} Nf6 {[%emt 0:00:00]} 2. Bf4 {[%emt 0:00:00]} c5 {[%emt 0:00:06]} 3. e3 {[%emt 0:00:12]} d5 {[%emt 0:00:05]} 4. Nf3 {[%emt 0:00:08]} Nc6 {[%emt 0:00:02]} 5. c3 {[%emt 0:00:07]} Qb6 {[%emt 0:00:13]} 6. Qb3 {[%emt 0:00:11]} c4 {[%emt 0:00:07]} 7. Qc2 {[%emt 0:00:01]} Bf5 {[%emt 0:00:08]} 8. Qc1 {[%emt 0:00:00]} Nh5 {[%emt 0:00:16]} 9. Be2 {[%emt 0:00:05]} Nxf4 {[%emt 0:00:18]} 10. exf4 {[%emt 0:00:01]} e6 {[%emt 0:00:03]} 11. O-O {[%emt 0:00:06]} Bd6 {[%emt 0:00:14]} 12. g3 {[%emt 0:00:07]} O-O {[%emt 0:01:01]} 13. Nbd2 {[%emt 0:00:13]} f6 {[%emt 0:00:51]} 14. b3 {[%emt 0:01:43]} cxb3 {[%emt 0:00:02]} 15. Nxb3 {[%emt 0:00:16]} e5 {[%emt 0:01:39]} 16. c4 {[%emt 0:00:18]} dxc4 {[%emt 0:02:15]} 17. Qxc4+ {[%emt 0:00:31]} Kh8 {[%emt 0:00:02]} 18. fxe5 {[%emt 0:01:25]} fxe5 {[%emt 0:00:01]} 19. Ng5 {[%emt 0:00:08]} Qc7 {[%emt 0:01:53]} 20. d5 {[%emt 0:00:38]} Nd4 {[%emt 0:00:59]} 21. Nxd4 {[%emt 0:00:18]} exd4 {[%emt 0:00:19]} 22. Qxc7 {[%emt 0:00:10]} Bxc7 {[%emt 0:00:01]} 23. Ne6 {[%emt 0:00:02]} Bxe6 {[%emt 0:01:19]} 24. dxe6 {[%emt 0:00:01]} Rae8 {[%emt 0:00:04]} 25. Bc4 {[%emt 0:00:55]} b5 {[%emt 0:00:01]} 26. Bxb5 {[%emt 0:02:33]} Rxe6 {[%emt 0:00:02]} 27. Rae1 {[%emt 0:00:23]} Rb6 {[%emt 0:00:35]} 28. Bd3 {[%emt 0:00:17]} Rb2 {[%emt 0:00:14]} 29. Re2 {[%emt 0:00:18]} Rxe2 {[%emt 0:00:28]} 30. Bxe2 {[%emt 0:00:01]} Bb6 {[%emt 0:00:02]} 31. Kg2 {[%emt 0:00:10]} g6 {[%emt 0:00:06]} 32. Bd3 {[%emt 0:00:04]} Rc8 {[%emt 0:00:13]} 33. f4 {[%emt 0:00:39]} Rc3 {[%emt 0:00:05]} 34. Rf3 {[%emt 0:00:02]} Kg7 {[%emt 0:00:06]} 35. f5 {[%emt 0:00:14]} gxf5 {[%emt 0:01:20]} 36. Bxf5 {[%emt 0:00:04]} Rxf3 {[%emt 0:01:53]} 37. Kxf3 {[%emt 0:00:02]} h6 {[%emt 0:00:02]} 38. Ke4 1/2-1/2

[Event "RUS-chT Rapid Men 2018"]
[Site "Sochi"]
[Date "2018.10.09"]
[Round "6"]
[White "Shkurkin, Andrey"]
[Black "Kretov, Evgenij"]
[Result "0-1"]
[ECO "A40"]
[WhiteElo "2201"]
[BlackElo "2219"]
[Annotator "NA"]
[PlyCount "72"]
[EventDate "2018.10.05"]
[EventType "swiss"]
[EventCountry "RUS"]
[SourceTitle "playchess.com"]
[Source "ChessBase"]
[SourceQuality "1"]
[TimeControl "900+10"]

1. d4 {[%emt 0:00:00]} Nf6 {[%emt 0:00:00]} 2. c4 {[%emt 0:00:00]} e6 {[%emt 0:00:00]} 3. g3 {[%emt 0:00:00]} c5 {[%emt 0:00:07]} 4. d5 {[%emt 0:01:16]} exd5 {[%emt 0:00:02]} 5. cxd5 {[%emt 0:00:02]} b5 {[%emt 0:00:02]} 6. e4 {[%emt 0:00:37]} Nxe4 {[%emt 0:00:16]} 7. Bg2 {[%emt 0:00:16]} Nd6 {[%emt 0:00:14]} 8. Nf3 {[%emt 0:00:19]} Be7 {[%emt 0:00:07]} 9. O-O {[%emt 0:00:07]} O-O {[%emt 0:00:07]} 10. Bf4 {[%emt 0:00:48]} Bb7 {[%emt 0:00:33]} 11. Re1 {[%emt 0:01:04]} Nc4 {[%emt 0:01:20]} 12. Nc3 {[%emt 0:03:46]} b4 {[%emt 0:02:29]} 13. Ne4 {[%emt 0:02:34]} d6 {[%emt 0:00:47]} 14. Qc2 {[%emt 0:00:36]} Nb6 {[%emt 0:01:09]} 15. Rad1 {[%emt 0:02:30]} Na6 {[%emt 0:01:21]} 16. Nfg5 {[%emt 0:01:33]} g6 {[%emt 0:00:14]} 17. Qe2 {[%emt 0:00:44]} c4 {[%emt 0:03:15]} 18. Qg4 {[%emt 0:00:22]} h5 {[%emt 0:01:37]} 19. Qh4 {[%emt 0:01:10]} Nxd5 {[%emt 0:00:10]} 20. Rxd5 {[%emt 0:00:22]} Bxd5 {[%emt 0:00:02]} 21. Nf6+ {[%emt 0:00:04]} Bxf6 {[%emt 0:00:03]} 22. Bxd5 {[%emt 0:00:02]} Qd7 {[%emt 0:01:22]} 23. h3 {[%emt 0:00:23]} Rae8 {[%emt 0:00:30]} 24. Rd1 {[%emt 0:00:09]} Qf5 {[%emt 0:00:46]} 25. Bxc4 {[%emt 0:00:15]} Nc5 {[%emt 0:00:12]} 26. Rd5 {[%emt 0:00:09]} Re1+ {[%emt 0:00:14]} 27. Kh2 {[%emt 0:00:08]} Qc2 {[%emt 0:00:22]} 28. Bd2 {[%emt 0:00:11]} Re4 {[%emt 0:00:09]} 29. Bd3 {[%emt 0:00:09]} Qxd3 {[%emt 0:00:16]} 30. Qxe4 {[%emt 0:00:12]} Qxe4 {[%emt 0:00:05]} 31. Nxe4 {[%emt 0:00:03]} Nxe4 {[%emt 0:00:01]} 32. Bxb4 {[%emt 0:00:08]} Rb8 {[%emt 0:00:18]} 33. a3 {[%emt 0:00:15]} Nxf2 {[%emt 0:00:10]} 34. Rxd6 {[%emt 0:00:10]} Be7 {[%emt 0:00:25]} 35. Rd7 {[%emt 0:00:13]} Bxb4 {[%emt 0:00:03]} 36. axb4 {[%emt 0:00:05]} Rxb4 {[%emt 0:00:01]} 0-1

[Event "RUS-chT Rapid Men 2018"]
[Site "Sochi"]
[Date "2018.10.09"]
[Round "7"]
[White "Chigaev, Maksim"]
[Black "Bocharov, Ivan"]
[Result "1-0"]
[ECO "C50"]
[WhiteElo "2599"]
[BlackElo "2563"]
[Annotator "ChessBase"]
[PlyCount "47"]
[EventDate "2018.10.05"]
[EventType "swiss"]
[EventCountry "RUS"]
[SourceTitle "playchess.com"]
[Source "ChessBase"]
[SourceQuality "1"]
[TimeControl "900+10"]

1. e4 {[%emt 0:00:00]} e5 {[%emt 0:00:00]} 2. Nf3 {[%emt 0:00:00]} Nc6 {[%emt 0:00:00]} 3. Bc4 {[%emt 0:00:00]} Bc5 {[%emt 0:00:00]} 4. O-O {[%emt 0:00:00]} Nf6 {[%emt 0:00:00]} 5. d3 {[%emt 0:00:00]} d6 {[%emt 0:00:00]} 6. a4 {[%emt 0:00:05]} a5 {[%emt 0:00:00]} 7. Bg5 {[%emt 0:00:37]} h6 {[%emt 0:00:09]} 8. Bh4 {[%emt 0:00:02]} g5 {[%emt 0:01:45]} 9. Bg3 {[%emt 0:00:01]} h5 {[%emt 0:00:58]} 10. h4 {[%emt 0:01:59]} Bg4 {[%emt 0:00:33]} 11. Nbd2 {[%emt 0:02:23]} Nh7 {[%emt 0:00:52]} 12. c3 {[%emt 0:00:19]} Qf6 {[%emt 0:01:07]} 13. Qb3 {[%emt 0:03:13]} O-O-O {[%emt 0:00:39]} 14. Bd5 {[%emt 0:00:43]} Rhg8 {[%emt 0:00:37]} 15. Kh1 {[%emt 0:00:10]} Rg7 {[%emt 0:01:55]} 16. d4 {[%emt 0:02:41]} Bxf3 {[%emt 0:02:39]} 17. Nxf3 {[%emt 0:00:10]} g4 {[%emt 0:02:07]} 18. Nxe5 {[%emt 0:00:16]} dxe5 {[%emt 0:00:31]} 19. dxc5 {[%emt 0:00:06]} Nf8 {[%emt 0:00:18]} 20. Qb5 {[%emt 0:02:33]} Ng6 {[%emt 0:00:51]} 21. b4 {[%emt 0:00:28]} axb4 {[%emt 0:01:15]} 22. a5 {[%emt 0:00:15]} Nge7 {[%emt 0:00:39]} 23. a6 {[%emt 0:00:09]} bxa6 {[%emt 0:00:04]} 24. Rxa6 {[%emt 0:00:09]} 1-0

[Event "RUS-chT Rapid Men 2018"]
[Site "Sochi"]
[Date "2018.10.09"]
[Round "7"]
[White "Khanin, Semen"]
[Black "Oganian, Miran"]
[Result "0-1"]
[ECO "B90"]
[WhiteElo "2510"]
[BlackElo "2435"]
[Annotator "ChessBase"]
[PlyCount "78"]
[EventDate "2018.10.05"]
[EventType "swiss"]
[EventCountry "RUS"]
[SourceTitle "playchess.com"]
[Source "ChessBase"]
[SourceQuality "1"]
[TimeControl "900+10"]

1. e4 {[%emt 0:00:00]} c5 {[%emt 0:00:00]} 2. Nf3 {[%emt 0:00:00]} d6 {[%emt 0:00:00]} 3. d4 {[%emt 0:00:00]} cxd4 {[%emt 0:00:00]} 4. Nxd4 {[%emt 0:00:00]} Nf6 {[%emt 0:00:00]} 5. Nc3 {[%emt 0:00:00]} a6 {[%emt 0:00:01]} 6. f3 {[%emt 0:00:00]} e5 {[%emt 0:00:14]} 7. Nb3 {[%emt 0:00:02]} Be6 {[%emt 0:00:10]} 8. Be3 {[%emt 0:00:02]} h5 {[%emt 0:00:05]} 9. Qd2 {[%emt 0:00:10]} Nbd7 {[%emt 0:00:02]} 10. O-O-O {[%emt 0:00:10]} Be7 {[%emt 0:00:05]} 11. Kb1 {[%emt 0:00:24]} Rc8 {[%emt 0:00:04]} 12. h4 {[%emt 0:00:04]} Qc7 {[%emt 0:00:57]} 13. Bg5 {[%emt 0:00:12]} b5 {[%emt 0:01:09]} 14. a3 {[%emt 0:00:02]} Nb6 {[%emt 0:01:48]} 15. Bxf6 {[%emt 0:00:02]} gxf6 {[%emt 0:00:04]} 16. Qf2 {[%emt 0:00:14]} f5 {[%emt 0:00:49]} 17. g3 {[%emt 0:00:15]} fxe4 {[%emt 0:01:24]} 18. fxe4 {[%emt 0:00:03]} Rg8 {[%emt 0:00:38]} 19. Bh3 {[%emt 0:00:51]} Nc4 {[%emt 0:01:21]} 20. Nd5 {[%emt 0:00:37]} Bxd5 {[%emt 0:00:04]} 21. Rxd5 {[%emt 0:00:57]} Rb8 {[%emt 0:00:52]} 22. Rf1 Rg7 23. Rd3 {[%emt 0:03:58]} a5 {[%emt 0:00:49]} 24. Rf3 {[%emt 0:00:15]} Bd8 {[%emt 0:00:09]} 25. Rf5 {[%emt 0:00:19]} Rh7 {[%emt 0:00:28]} 26. Nc1 {[%emt 0:01:46]} Qb7 {[%emt 0:01:40]} 27. Qe2 {[%emt 0:00:53]} Qxe4 {[%emt 0:00:52]} 28. Qd1 {[%emt 0:03:40]} Be7 {[%emt 0:04:14]} 29. Re1 {[%emt 0:00:07]} Qc6 {[%emt 0:00:41]} 30. Rxh5 {[%emt 0:00:17]} Rxh5 {[%emt 0:00:04]} 31. Qxh5 {[%emt 0:00:02]} Nd2+ {[%emt 0:00:06]} 32. Ka1 {[%emt 0:00:03]} Qxc2 {[%emt 0:00:04]} 33. Qh8+ {[%emt 0:00:07]} Bf8 {[%emt 0:00:02]} 34. Rxe5+ {[%emt 0:00:02]} dxe5 {[%emt 0:00:28]} 35. Qxe5+ {[%emt 0:00:01]} Be7 {[%emt 0:00:36]} 36. Qxb8+ {[%emt 0:00:13]} Bd8 {[%emt 0:00:02]} 37. Qe5+ {[%emt 0:00:27]} Kf8 {[%emt 0:00:21]} 38. Qh8+ {[%emt 0:02:34]} Ke7 {[%emt 0:00:01]} 39. Qc3 {[%emt 0:00:25]} Qb1# {[%emt 0:00:03]} 0-1

[Event "RUS-chT Rapid Men 2018"]
[Site "Sochi"]
[Date "2018.10.09"]
[Round "7"]
[White "Belyakov, Bogdan"]
[Black "Shcherbakov, Ruslan"]
[Result "1/2-1/2"]
[ECO "C47"]
[WhiteElo "2458"]
[BlackElo "2516"]
[Annotator "ChessBase"]
[PlyCount "73"]
[EventDate "2018.10.05"]
[EventType "swiss"]
[EventCountry "RUS"]
[SourceTitle "playchess.com"]
[Source "ChessBase"]
[SourceQuality "1"]
[TimeControl "900+10"]

1. e4 {[%emt 0:00:00]} e5 {[%emt 0:00:00]} 2. Nf3 {[%emt 0:00:00]} Nc6 {[%emt 0:00:00]} 3. Nc3 {[%emt 0:00:13]} Nf6 {[%emt 0:00:00]} 4. Be2 {[%emt 0:00:02]} d5 {[%emt 0:01:40]} 5. exd5 {[%emt 0:00:02]} Nxd5 {[%emt 0:00:02]} 6. O-O {[%emt 0:00:03]} Nxc3 {[%emt 0:01:23]} 7. bxc3 {[%emt 0:00:02]} Bd6 {[%emt 0:02:20]} 8. d4 {[%emt 0:00:04]} O-O {[%emt 0:00:33]} 9. Rb1 {[%emt 0:01:37]} Rb8 {[%emt 0:01:17]} 10. Bb5 {[%emt 0:03:12]} Bg4 {[%emt 0:00:54]} 11. h3 {[%emt 0:00:07]} Bh5 {[%emt 0:00:24]} 12. Bxc6 {[%emt 0:00:37]} bxc6 {[%emt 0:00:02]} 13. Rxb8 {[%emt 0:00:01]} Qxb8 {[%emt 0:00:02]} 14. dxe5 {[%emt 0:00:03]} Bc5 {[%emt 0:01:53]} 15. Qe2 {[%emt 0:00:58]} Re8 {[%emt 0:01:14]} 16. Rd1 {[%emt 0:00:50]} Qc8 {[%emt 0:02:27]} 17. Qe4 {[%emt 0:02:16]} Bxf3 {[%emt 0:00:28]} 18. Qxf3 {[%emt 0:00:12]} Rxe5 {[%emt 0:00:30]} 19. Qxc6 {[%emt 0:00:32]} Bb6 {[%emt 0:01:40]} 20. Bf4 {[%emt 0:02:17]} Re6 {[%emt 0:00:02]} 21. Qd7 {[%emt 0:01:14]} Qxd7 {[%emt 0:00:05]} 22. Rxd7 {[%emt 0:00:02]} h5 {[%emt 0:00:13]} 23. Bxc7 {[%emt 0:02:13]} Re1+ {[%emt 0:00:02]} 24. Kh2 {[%emt 0:00:01]} Bxf2 {[%emt 0:00:02]} 25. g4 {[%emt 0:00:49]} hxg4 {[%emt 0:00:19]} 26. hxg4 {[%emt 0:00:01]} Re2 {[%emt 0:00:02]} 27. Bf4 {[%emt 0:01:10]} Bb6+ {[%emt 0:00:19]} 28. Kg3 {[%emt 0:00:02]} Rxc2 {[%emt 0:00:01]} 29. Be5 {[%emt 0:00:07]} Rxa2 {[%emt 0:00:12]} 30. Bd4 {[%emt 0:00:10]} Rd2 {[%emt 0:00:44]} 31. Kf3 {[%emt 0:00:03]} f6 {[%emt 0:00:10]} 32. Ke3 {[%emt 0:00:03]} Rg2 {[%emt 0:00:08]} 33. Kf3 {[%emt 0:00:03]} Rc2 {[%emt 0:00:12]} 34. g5 {[%emt 0:00:22]} fxg5 {[%emt 0:00:20]} 35. Rxg7+ {[%emt 0:00:05]} Kf8 {[%emt 0:00:01]} 36. Rxg5 {[%emt 0:00:02]} Bxd4 {[%emt 0:00:06]} 37. Ke4 1/2-1/2

[Event "RUS-chT Rapid Men 2018"]
[Site "Sochi"]
[Date "2018.10.09"]
[Round "7"]
[White "Nechaev, Oleg"]
[Black "Taysayev, Timur"]
[Result "0-1"]
[ECO "D43"]
[WhiteElo "2400"]
[BlackElo "2225"]
[Annotator "NA RC"]
[PlyCount "92"]
[EventDate "2018.10.05"]
[EventType "swiss"]
[EventCountry "RUS"]
[SourceTitle "playchess.com"]
[Source "ChessBase"]
[SourceQuality "1"]
[TimeControl "900+10"]

1. d4 {[%emt 0:00:00]} Nf6 {[%emt 0:00:00]} 2. c4 {[%emt 0:00:01]} e6 {[%emt 0:00:14]} 3. Nf3 {[%emt 0:00:07]} d5 {[%emt 0:00:22]} 4. Nc3 {[%emt 0:00:06]} c6 {[%emt 0:00:02]} 5. cxd5 {[%emt 0:00:12]} cxd5 {[%emt 0:00:07]} 6. Bg5 {[%emt 0:00:10]} Be7 {[%emt 0:00:29]} 7. e3 {[%emt 0:00:04]} Ne4 {[%emt 0:00:11]} 8. Nxe4 {[%emt 0:02:03]} dxe4 {[%emt 0:00:03]} 9. Bxe7 Qxe7 {[%emt 0:00:16]} 10. Nd2 {[%emt 0:01:48]} f5 {[%emt 0:00:14]} 11. Qh5+ {[%emt 0:04:09]} g6 {[%emt 0:01:06]} 12. Qh6 {[%emt 0:00:15]} Bd7 {[%emt 0:00:41]} 13. Be2 {[%emt 0:01:13]} Nc6 {[%emt 0:00:39]} 14. O-O {[%emt 0:00:03]} O-O-O {[%emt 0:00:53]} 15. Rfc1 {[%emt 0:00:08]} Kb8 {[%emt 0:00:29]} 16. Nb3 {[%emt 0:02:31]} e5 {[%emt 0:00:59]} 17. dxe5 {[%emt 0:01:38]} Qxe5 {[%emt 0:00:14]} 18. Nc5 {[%emt 0:01:36]} Bc8 {[%emt 0:00:03]} 19. Bb5 {[%emt 0:00:47]} Nb4 {[%emt 0:01:17]} 20. a3 {[%emt 0:00:19]} Nd3 {[%emt 0:00:45]} 21. Bxd3 {[%emt 0:01:02]} exd3 {[%emt 0:00:03]} 22. Qf4 {[%emt 0:00:17]} Qxf4 {[%emt 0:00:18]} 23. exf4 {[%emt 0:00:00]} b6 {[%emt 0:02:18]} 24. Nb3 {[%emt 0:00:02]} Rhe8 {[%emt 0:01:11]} 25. Rd1 {[%emt 0:00:14]} Re2 {[%emt 0:00:07]} 26. Nd2 {[%emt 0:00:10]} Ba6 {[%emt 0:00:16]} 27. Rac1 {[%emt 0:00:09]} Rc8 {[%emt 0:00:37]} 28. Rxc8+ {[%emt 0:00:04]} Kxc8 {[%emt 0:00:01]} 29. b3 {[%emt 0:00:02]} Kc7 {[%emt 0:00:11]} 30. Kf1 {[%emt 0:00:09]} Kc6 {[%emt 0:00:19]} 31. Nc4 {[%emt 0:00:11]} Rc2 {[%emt 0:01:03]} 32. Ke1 {[%emt 0:00:26]} Rc3 {[%emt 0:00:38]} 33. Nd2 {[%emt 0:00:03]} Kd5 {[%emt 0:00:15]} 34. Rb1 {[%emt 0:00:27]} Kd4 {[%emt 0:00:19]} 35. Kd1 {[%emt 0:00:01]} Bb7 {[%emt 0:00:17]} 36. g3 {[%emt 0:00:05]} Bd5 {[%emt 0:00:08]} 37. Rb2 {[%emt 0:00:08]} a5 {[%emt 0:00:11]} 38. Rb1 {[%emt 0:00:00]} b5 {[%emt 0:00:05]} 39. Rb2 {[%emt 0:00:01]} Be4 {[%emt 0:00:36]} 40. Rb1 {[%emt 0:00:06]} Rc2 {[%emt 0:00:01]} 41. Rc1 {[%emt 0:00:24]} Kc3 {[%emt 0:00:13]} 42. Nxe4+ {[%emt 0:00:10]} fxe4 {[%emt 0:00:03]} 43. Rxc2+ {[%emt 0:00:01]} dxc2+ {[%emt 0:00:02]} 44. Kc1 {[%emt 0:00:00]} Kxb3 {[%emt 0:00:04]} 45. g4 {[%emt 0:00:01]} b4 {[%emt 0:00:02]} 46. a4 {[%emt 0:00:06]} Kc3 {[%emt 0:00:01]} 0-1

[Event "RUS-chT Rapid Men 2018"]
[Site "Sochi"]
[Date "2018.10.09"]
[Round "7"]
[White "Tenikashvili, Georgij"]
[Black "Rozhko, Dmitry"]
[Result "1-0"]
[ECO "D15"]
[WhiteElo "2361"]
[BlackElo "2305"]
[Annotator "NA"]
[PlyCount "49"]
[EventDate "2018.10.05"]
[EventType "swiss"]
[EventCountry "RUS"]
[SourceTitle "playchess.com"]
[Source "ChessBase"]
[SourceQuality "1"]
[TimeControl "900+10"]

1. d4 {[%emt 0:00:00]} d5 {[%emt 0:00:00]} 2. c4 {[%emt 0:00:00]} c6 {[%emt 0:00:00]} 3. Nc3 {[%emt 0:00:00]} Nf6 {[%emt 0:00:00]} 4. Nf3 {[%emt 0:00:00]} a6 {[%emt 0:00:00]} 5. cxd5 {[%emt 0:00:04]} cxd5 {[%emt 0:00:00]} 6. Bf4 {[%emt 0:00:02]} Nc6 {[%emt 0:00:04]} 7. e3 {[%emt 0:00:02]} Bf5 {[%emt 0:00:48]} 8. Be2 {[%emt 0:00:56]} e6 {[%emt 0:00:11]} 9. O-O {[%emt 0:00:05]} Bb4 {[%emt 0:01:18]} 10. Nd2 {[%emt 0:01:34]} O-O {[%emt 0:00:14]} 11. Nb3 {[%emt 0:01:37]} Rc8 12. Rc1 {[%emt 0:01:41]} Nd7 {[%emt 0:03:12]} 13. a3 {[%emt 0:02:01]} Be7 {[%emt 0:00:28]} 14. Na4 {[%emt 0:00:50]} b5 {[%emt 0:04:17]} 15. Nac5 {[%emt 0:00:22]} Nxc5 {[%emt 0:00:08]} 16. Nxc5 {[%emt 0:00:22]} Bxc5 {[%emt 0:01:56]} 17. Rxc5 {[%emt 0:00:34]} Na5 {[%emt 0:00:39]} 18. a4 {[%emt 0:01:12]} Qb6 {[%emt 0:02:47]} 19. axb5 {[%emt 0:01:09]} Rxc5 {[%emt 0:00:52]} 20. dxc5 {[%emt 0:00:04]} Qxc5 {[%emt 0:00:02]} 21. bxa6 {[%emt 0:00:12]} Qb6 {[%emt 0:00:24]} 22. Qa4 {[%emt 0:00:51]} Nc4 {[%emt 0:00:30]} 23. a7 {[%emt 0:01:23]} Ra8 {[%emt 0:00:12]} 24. Bb8 {[%emt 0:00:31]} Nxb2 {[%emt 0:00:09]} 25. Qe8# 1-0

[Event "RUS-chT Rapid Men 2018"]
[Site "Sochi"]
[Date "2018.10.09"]
[Round "7"]
[White "Dilmukhametov, Artur"]
[Black "Jary, Sergey"]
[Result "1/2-1/2"]
[ECO "A45"]
[WhiteElo "2353"]
[BlackElo "2286"]
[Annotator "NA"]
[PlyCount "54"]
[EventDate "2018.10.05"]
[EventType "swiss"]
[EventCountry "RUS"]
[SourceTitle "playchess.com"]
[Source "ChessBase"]
[SourceQuality "1"]
[TimeControl "900+10"]

1. d4 {[%emt 0:00:00]} Nf6 {[%emt 0:00:00]} 2. Nc3 {[%emt 0:00:00]} d5 {[%emt 0:00:00]} 3. Bf4 {[%emt 0:00:00]} e6 {[%emt 0:00:05]} 4. e3 {[%emt 0:00:00]} Bd6 {[%emt 0:00:05]} 5. Qf3 {[%emt 0:00:03]} a6 {[%emt 0:00:25]} 6. g4 {[%emt 0:00:12]} Bxf4 {[%emt 0:00:19]} 7. Qxf4 {[%emt 0:00:03]} Qd6 {[%emt 0:00:02]} 8. Qf3 {[%emt 0:00:04]} h6 {[%emt 0:00:13]} 9. h4 {[%emt 0:00:25]} Nc6 {[%emt 0:00:32]} 10. g5 {[%emt 0:00:59]} hxg5 {[%emt 0:00:22]} 11. hxg5 {[%emt 0:00:03]} Rxh1 {[%emt 0:00:03]} 12. Qxh1 {[%emt 0:00:02]} Ng8 {[%emt 0:00:01]} 13. O-O-O {[%emt 0:01:56]} Bd7 {[%emt 0:00:03]} 14. Qh7 {[%emt 0:01:37]} Qf8 {[%emt 0:00:27]} 15. Nge2 {[%emt 0:04:01]} O-O-O {[%emt 0:00:08]} 16. Nf4 {[%emt 0:00:09]} Nge7 {[%emt 0:00:53]} 17. a3 {[%emt 0:02:06]} Qh8 {[%emt 0:00:32]} 18. Qxh8 {[%emt 0:02:15]} Rxh8 {[%emt 0:00:02]} 19. Bg2 {[%emt 0:00:01]} Nf5 {[%emt 0:00:30]} 20. Rh1 {[%emt 0:01:27]} Rxh1+ {[%emt 0:00:23]} 21. Bxh1 {[%emt 0:00:00]} Kd8 {[%emt 0:00:08]} 22. Kd2 {[%emt 0:00:30]} Ke7 {[%emt 0:00:03]} 23. Nd3 {[%emt 0:00:16]} b6 {[%emt 0:00:19]} 24. Bf3 {[%emt 0:00:04]} f6 {[%emt 0:00:04]} 25. gxf6+ {[%emt 0:00:04]} gxf6 {[%emt 0:00:01]} 26. Bg4 {[%emt 0:00:14]} Ng7 {[%emt 0:00:08]} 27. Nf4 {[%emt 0:00:03]} Kd6 {[%emt 0:00:10]} 1/2-1/2

[Event "RUS-chT Rapid Men 2018"]
[Site "Sochi"]
[Date "2018.10.09"]
[Round "7"]
[White "Derjabin, Ilja"]
[Black "Inozemtsev, Sergei"]
[Result "0-1"]
[ECO "E20"]
[WhiteElo "2345"]
[BlackElo "2310"]
[Annotator "NA"]
[PlyCount "96"]
[EventDate "2018.10.05"]
[EventType "swiss"]
[EventCountry "RUS"]
[SourceTitle "playchess.com"]
[Source "ChessBase"]
[SourceQuality "1"]
[TimeControl "900+10"]

1. d4 {[%emt 0:00:00]} e6 {[%emt 0:00:00]} 2. c4 {[%emt 0:00:00]} Nf6 {[%emt 0:00:00]} 3. Nc3 {[%emt 0:00:00]} Bb4 {[%emt 0:00:00]} 4. f3 {[%emt 0:00:00]} d5 {[%emt 0:00:46]} 5. a3 {[%emt 0:00:00]} Be7 {[%emt 0:00:30]} 6. e4 {[%emt 0:00:00]} dxe4 {[%emt 0:00:06]} 7. fxe4 {[%emt 0:00:01]} e5 {[%emt 0:00:02]} 8. d5 {[%emt 0:00:01]} O-O {[%emt 0:00:05]} 9. Nf3 {[%emt 0:00:04]} Bg4 {[%emt 0:00:21]} 10. h3 {[%emt 0:00:05]} Bh5 {[%emt 0:00:30]} 11. g4 {[%emt 0:01:15]} Bg6 {[%emt 0:00:00]} 12. Bd3 {[%emt 0:00:01]} Nbd7 {[%emt 0:00:15]} 13. Qe2 {[%emt 0:01:15]} c6 {[%emt 0:05:32]} 14. O-O {[%emt 0:03:38]} cxd5 {[%emt 0:02:03]} 15. cxd5 {[%emt 0:00:02]} Ne8 {[%emt 0:00:05]} 16. Kg2 {[%emt 0:00:35]} Nd6 {[%emt 0:00:39]} 17. Be3 {[%emt 0:00:13]} a6 {[%emt 0:00:30]} 18. Rac1 {[%emt 0:00:05]} h5 {[%emt 0:00:39]} 19. Rg1 {[%emt 0:00:52]} Rc8 {[%emt 0:00:25]} 20. Rcf1 {[%emt 0:00:27]} hxg4 {[%emt 0:00:09]} 21. hxg4 {[%emt 0:00:01]} b5 {[%emt 0:00:10]} 22. Rh1 {[%emt 0:00:23]} Nc4 {[%emt 0:00:28]} 23. Bc1 {[%emt 0:00:26]} Nxa3 {[%emt 0:00:14]} 24. Kg3 {[%emt 0:00:06]} Nf6 {[%emt 0:00:45]} 25. d6 {[%emt 0:01:21]} Qxd6 {[%emt 0:00:31]} 26. Qh2 {[%emt 0:00:44]} Nh7 {[%emt 0:00:11]} 27. Nd5 {[%emt 0:00:05]} Nc4 {[%emt 0:00:41]} 28. Bg5 {[%emt 0:02:44]} f6 {[%emt 0:01:29]} 29. Nh4 {[%emt 0:00:11]} Qxd5 {[%emt 0:00:18]} 30. exd5 {[%emt 0:00:08]} Bxd3 {[%emt 0:00:01]} 31. Nf5 {[%emt 0:01:20]} Bxf5 {[%emt 0:00:17]} 32. Rxf5 {[%emt 0:00:03]} Nxg5 {[%emt 0:00:26]} 33. Rxg5 {[%emt 0:00:11]} fxg5 {[%emt 0:00:13]} 34. Qh7+ {[%emt 0:00:13]} Kf7 {[%emt 0:00:06]} 35. Qf5+ {[%emt 0:00:02]} Bf6 {[%emt 0:00:43]} 36. Qd7+ {[%emt 0:00:13]} Kg6 {[%emt 0:00:11]} 37. Rc1 {[%emt 0:01:37]} Rce8 {[%emt 0:00:32]} 38. b3 {[%emt 0:00:17]} Ne3 {[%emt 0:00:26]} 39. d6 {[%emt 0:00:19]} e4 {[%emt 0:00:11]} 40. Rc5 {[%emt 0:01:07]} Be5+ {[%emt 0:00:31]} 41. Rxe5 {[%emt 0:00:02]} Rxe5 {[%emt 0:00:02]} 42. Qc6 {[%emt 0:00:06]} Rf3+ {[%emt 0:00:18]} 43. Kh2 {[%emt 0:00:03]} Nxg4+ {[%emt 0:00:05]} 44. Kg2 {[%emt 0:00:01]} Nf6 {[%emt 0:00:05]} 45. d7 {[%emt 0:00:07]} Rd3 {[%emt 0:00:06]} 46. Qc7 {[%emt 0:00:36]} Red5 {[%emt 0:00:03]} 47. b4 {[%emt 0:00:04]} Rxd7 {[%emt 0:00:02]} 48. Qb8 {[%emt 0:00:02]} Rc3 {[%emt 0:00:24]} 0-1